Cogmind - Beta 13 @@@ ROGUE MODE // 2024.04.02 @ 05:55:02 Player: Some Pennies Result: Destroyed by G-47 Trooper with Particle Gun Performance ------------- Evolutions (2) 1000 Regions Visited (3) 600 Robots Destroyed (87) 435 Value Destroyed (1594) 1594 Prototype IDs (10) 200 Alien Tech Used (0) 0 Bonus (306) 306 TOTAL SCORE: 4135 Bonus ------- High Alert Combat Kills 306 Cogmind --------- Core Integrity 0/550 Matter 248/300 Energy 100/100 System Corruption 4% Temperature Cool (9) Movement Core (700) Ox13 Location -8/Materials Parts ------- > --- POWER (1) -------- (None) > --- PROPULSION (3) --- (None) > --- UTILITY (5) ------ High-capacity Storage Unit Salvage Targeting Computer Salvage Targeting Computer > --- WEAPON (2) ------- (None) > --- INVENTORY (20) --- Light Deuterium Engine Light Deuterium Engine Light Deuterium Engine Light Treads Cooling System Compact Battery (200) Advanced Weight Redist. System Improved Sensor Array ECM Suite Improved Propulsion Shielding Improved Propulsion Shielding Long-range Tractor Beam Shock Rifle Shock Rifle Faulty Heavy Particle Gun Advanced Beam Cannon Advanced Beam Cannon Advanced Beam Cannon Grenade Launcher Peak State ------------ > --- POWER ------------ Light Deuterium Engine > --- PROPULSION ------- Light Treads Light Treads Improved Treads > --- UTILITY ---------- High-capacity Storage Unit Salvage Targeting Computer Salvage Targeting Computer Improved Propulsion Shielding Improved Propulsion Shielding > --- WEAPON ----------- Heavy Particle Gun Advanced Beam Cannon > --- INVENTORY -------- Light Deuterium Engine Light Deuterium Engine Light Deuterium Engine Light Treads Cooling System Compact Battery Advanced Weight Redist. System Improved Sensor Array ECM Suite Improved Propulsion Shielding Improved Propulsion Shielding Long-range Tractor Beam Shock Rifle Shock Rifle Heavy Particle Gun Advanced Beam Cannon Advanced Beam Cannon Advanced Beam Cannon Grenade Launcher Rocket Launcher [Rating: 30] Favorites ----------- Power Ion Engine Engine Ion Engine Propulsion Light Treads Treads Light Treads Utility High-capacity Storage Unit Device Improved Terrain Scanner Storage High-capacity Storage Unit Processor Salvage Targeting Computer Protection Improved Propulsion Shielding Weapon Mini Grenade Launcher Energy Gun Shock Rifle Energy Cannon Advanced Beam Cannon Ballistic Gun Assault Rifle Launcher Mini Grenade Launcher Special Weapon Mining Laser Build | -11 -10 -9 -8 ------- Run | Yrd Mat Mat Mat Slots Evolved 4 | . . 2 2 Power . | . . . . Propulsion 1 | . . 1 . Utility 3 | . . 1 2 Weapon . | . . . . Parts Attached 51 | 9 8 30 4 Power 6 | 1 . 5 . Engine 6 | 1 . 5 . Core . | . . . . Reactor . | . . . . Propulsion 12 | 2 2 8 . Treads 12 | 2 2 8 . Leg . | . . . . Wheel . | . . . . Hover . | . . . . Flight . | . . . . Utility 17 | 2 4 9 2 Device 3 | 1 1 1 . Storage 5 | 1 3 1 . Processor 2 | . . 1 1 Hackware . | . . . . Protection 7 | . . 6 1 Artifact . | . . . . Weapon 16 | 4 2 8 2 Energy Gun 3 | . . 2 1 Energy Cannon 3 | . . 3 . Ballistic Gun 3 | 3 . . . Ballistic Cannon . | . . . . Launcher 6 | . 2 3 1 Special Weapon 1 | 1 . . . Impact Weapon . | . . . . Slashing Weapon . | . . . . Piercing Weapon . | . . . . Special Melee Weapon . | . . . . Unidentified Prototypes 1 | . . . 1 Parts Lost 12 | . . 4 8 Power 2 | . . 1 1 Propulsion 5 | . . 2 3 Utility 3 | . . 1 2 Weapon 2 | . . . 2 Highest Loss Streak 8 | . . 1 8 To Critical Strikes . | . . . . Average Slot Usage (%) 95 | . 99 93 93 Engine 11 | . 14 11 8 Treads 29 | . 28 31 24 Device 6 | . 14 4 . Storage 11 | . 14 11 9 Processor 6 | . . 6 18 Protection 6 | . . 7 15 Energy Gun 2 | . . 2 8 Energy Cannon 5 | . . 6 8 Launcher 14 | . 26 12 . Naked Turns . | . . . . Heaviest Build 56 | 15 48 56 56 Greatest Support 69 | 40 46 69 63 Greatest Overweight (x) 13 | . 1 1 13 Average Overweight (x) . | . . . . Largest Inventory Capacity 20 | 8 20 20 20 Average Capacity 16 | 7 18 20 20 Most Carried 20 | 8 11 20 20 Average Carried 12 | 6 10 15 19 Final Capacity 20 | 8 20 20 20 Final Carried 20 | 8 11 20 19 Class Distribution -------------------- 84% | Mutant 15% | Scavenger-Mutant Dominant Class ---------------- Mutant | -10/Materials Mutant | -9/Materials Mutant | -8/Materials Resources | -11 -10 -9 -8 ----------- Run | Yrd Mat Mat Mat Matter Collected 1647 | 306 428 913 . Remotely . | . . . . Salvage Created 1937 | 117 156 1266 398 Parts 164 | 12 26 108 18 Haulers Intercepted 5 | . 1 3 1 Recyclers Shooed 2 | 1 . . 1 Parts Field Recycled . | . . . . Retrieved Matter . | . . . . Parts Self-Destructed . | . . . . Prevented . | . . . . Kills | -11 -10 -9 -8 ------- Run | Yrd Mat Mat Mat Combat Hostiles Destroyed 44 | . 8 32 4 Guns 2 | . . . 2 Cannons 7 | . . 6 1 AOE 34 | . 8 25 1 Classes Destroyed 11 | 2 7 1 1 Worker 13 | . 1 11 1 Builder 6 | . 2 4 . Tunneler 5 | 3 1 1 . Hauler 5 | . 1 3 1 Recycler 5 | 1 1 2 1 Operator 3 | . 2 1 . Watcher 6 | . 2 3 1 Swarmer 20 | . 6 14 . Grunt 14 | . 2 9 3 Duelist 1 | . . . 1 Sentry 9 | . . 9 . Best Kill Streak 11 | 1 10 11 3 Combat Bots Only 5 | . 3 5 2 Max Kills in Single Turn 4 | 1 3 4 2 Gunslinging . | . . . . Exploded 3 | . 3 3 1 Melee . | . . . . Uniques/NPCs Destroyed . | . . . . Combat | -11 -10 -9 -8 -------- Run | Yrd Mat Mat Mat Hostile Shots Fired 251 | . 17 117 117 Missed 52 | . 2 33 17 Damage Taken 2983 | . 190 1162 1631 Core 797 | . 33 207 557 Absorbed by Shields . | . . . . Redirected to Shielding 209 | . . 15 194 Regen/Repaired (Parts) 75 | . . 75 . Core Remaining (%) 78 | 100 86 48 . Volleys Fired 131 | 18 17 79 17 Largest 2 | 2 2 2 2 Hottest 123 | 100 60 118 123 Shots Fired 206 | 30 28 114 34 Gun 49 | 28 . 4 17 Cannon 59 | . . 44 15 Launcher 96 | . 28 66 2 Special 2 | 2 . . . Kinetic 28 | 28 . . . Thermal 70 | 2 . 44 24 Explosive 96 | . 28 66 2 Electromagnetic 12 | . . 4 8 Robot Hit Streak 10 | 5 3 10 6 Robot Miss Streak 3 | 3 3 2 2 Penetration Max . | . . . . Secondary Targets . | . . . . Shots Hit Robots 87 | 13 6 47 21 Core Hits 123 | 5 26 74 18 Critical Kills 1 | . . 1 . Critical Parts Destroyed . | . . . . Critical Strikes 1 | . . 1 . Meltdown 1 | . . 1 . Melee Attacks . | . . . . Impact . | . . . . Slashing . | . . . . Piercing . | . . . . Sneak Attacks . | . . . . Combat Hostiles . | . . . . Follow-up Attacks . | . . . . Damage Inflicted 5384 | 181 1348 3142 713 Guns 443 | 181 . 37 225 Cannons 804 | . . 596 208 Explosions 4137 | . 1348 2509 280 Melee . | . . . . Ramming . | . . . . Kinetic 181 | 181 . . . Thermal 909 | . . 596 313 Explosive 4137 | . 1348 2509 280 Electromagnetic 157 | . . 37 120 Impact . | . . . . Slashing . | . . . . Piercing . | . . . . Highest Corruption 4 | . . . 4 Average Corruption 3 | . . . 3 Corruption Purged . | . . . . Corruption Blocked . | . . . . Effects 1 | . . . 1 Message Errors 1 | . . . 1 Overload Shots . | . . . . Overflow Damage 143 | . 25 118 . Projectiles . | . . . . Explosions 143 | . 25 118 . Melee . | . . . . Knockbacks . | . . . . Impact . | . . . . Kinetic . | . . . . Secondary . | . . . . Self-Inflicted Damage 236 | . 51 136 49 Shots 9 | . 3 5 1 Rammed . | . . . . Targets Rammed . | . . . . Kicked . | . . . . Crushed . | . . . . Highest Temperature 485 | 20 21 158 485 Average Temperature 107 | 10 15 44 230 Received Heat Transfer 1350 | . 36 324 990 Effects 4 | . . . 4 Shutdowns 1 | . . . 1 Interference 3 | . . . 3 Siege Activations . | . . . . Robots Corrupted . | . . . . Combat Hostiles . | . . . . Parts Fried 1 | . . . 1 Impact Corruptions . | . . . . Robots Melted 1 | . . 1 . Combat Hostiles 1 | . . 1 . Parts Melted 3 | . . 2 1 Heat Transferred 1665 | . . 1073 592 Parts Sabotaged . | . . . . Parts Stolen . | . . . . Parts Stripped . | . . . . Power Chain Reactions 1 | . . 1 . Alert | -11 -10 -9 -8 ------- Run | Yrd Mat Mat Mat Peak Influence 1093 | 15 357 1093 481 Initial 427 | . . 111 427 Average 434 | 5 176 822 419 Maximum Alert Level 3 | . 1 3 2 Low Security (%) 41 | 100 52 10 . Level 1 12 | . 47 3 15 Level 2 15 | . . 16 83 Level 3 29 | . . 69 . Level 4 . | . . . . Level 5 . | . . . . High Security . | . . . . Max Security . | . . . . Squads Dispatched 5 | . . 3 2 Investigation 3 | . . 2 1 Extermination . | . . . . Reinforcement 2 | . . 1 1 Assault . | . . . . Garrison . | . . . . Intercept . | . . . . Searches Triggered . | . . . . Construction Impeded . | . . . . Haulers Reinforced . | . . . . Active Scanning Responses . | . . . . Cargo Convoy Interrupts . | . . . . Stealth | -11 -10 -9 -8 --------- Run | Yrd Mat Mat Mat Distress Signals 3 | . . 3 . Communications Jammed . | . . . . Distress Signals . | . . . . Times Spotted 62 | . 11 39 12 Peak Tracking Total 7 | . 4 7 7 Tactical Retreats . | . . . . Traps | -11 -10 -9 -8 ------- Run | Yrd Mat Mat Mat Traps Triggered 2 | . . . 2 Indirectly . | . . . . Trap Hack Attempts . | . . . . Triggered . | . . . . Disarmed . | . . . . Reprogrammed . | . . . . Reused . | . . . . Traps Extracted . | . . . . Installed . | . . . . Triggered . | . . . . Machines | -11 -10 -9 -8 ---------- Run | Yrd Mat Mat Mat Machines Disabled 14 | . 1 9 4 Max in Single Turn 2 | . 1 1 2 Machines Repaired . | . . . . Machines Dismantled . | . . . . Machines Sabotaged . | . . . . Overloaded Fab Kills . | . . . . Hacking | -11 -10 -9 -8 --------- Run | Yrd Mat Mat Mat Machines Accessed 13 | . 4 7 2 Terminals 10 | . 4 4 2 Fabricators . | . . . . Repair Stations 2 | . . 2 . Recycling Units 1 | . . 1 . Scanalyzers . | . . . . Garrison Access . | . . . . Total Hacks 32 | . 9 20 3 Successful 19 | . 5 13 1 Failed 13 | . 4 7 2 Catastrophic 1 | . . 1 . Database Lockouts . | . . . . Manual 4 | . . 1 3 Terminals 22 | . 9 10 3 Fabricators . | . . . . Repair Stations 8 | . . 8 . Recycling Units 2 | . . 2 . Scanalyzers . | . . . . Garrison Access . | . . . . Terminal Hacks 11 | . 5 5 1 Record 2 | . . 2 . Prototype ID Bank 4 | . 3 1 . Scanalyzer Index 1 | . 1 . . Unreport Threat 1 | . . . 1 Maintenance Status 1 | . . 1 . Zone Layout 2 | . 1 1 . Fabricator Hacks . | . . . . Repair Station Hacks 6 | . . 6 . Scan Component 4 | . . 4 . Repair 2 | . . 2 . Recycling Unit Hacks 2 | . . 2 . Process 1 | . . 1 . Report Inventory 1 | . . 1 . Scanalyzer . | . . . . Garrison Access Hacks . | . . . . Unauthorized Hacks . | . . . . Terminals . | . . . . Fabricators . | . . . . Repair Stations . | . . . . Recycling Units . | . . . . Scanalyzers . | . . . . Garrison Access . | . . . . Data Cores Recovered . | . . . . Used . | . . . . Hacking Detections 11 | . 4 5 2 Full Trace Events 3 | . . 2 1 Feedback Events . | . . . . Feedback Blocked . | . . . . Robot Schematics Acquired . | . . . . Robots Built . | . . . . Authchips . | . . . . Time . | . . . . Total Robot Build Rating . | . . . . Part Schematics Acquired . | . . . . Parts Built . | . . . . Authchips . | . . . . Time . | . . . . Total Part Build Rating . | . . . . Parts Repaired 2 | . . 2 . Time 64 | . . 64 . Parts Recycled . | . . . . Recycled Matter 233 | . . 233 . Retrieved Matter . | . . . . Retrieved Components . | . . . . Parts Scanalyzed . | . . . . Part Schematics Acquired . | . . . . Parts Damaged . | . . . . Bothacking | -11 -10 -9 -8 ------------ Run | Yrd Mat Mat Mat Used RIF Installer . | . . . . Robots Hacked . | . . . . Non-combat . | . . . . Combat . | . . . . Robot Hacks Applied . | . . . . Relay Couplers Released . | . . . . Fabnet Peak Effective % . | . . . . Robots Rewired . | . . . . Allies Hacked . | . . . . Hacks Repelled . | . . . . Allies | -11 -10 -9 -8 -------- Run | Yrd Mat Mat Mat Total Allies . | . . . . Largest Group . | . . . . Highest-Rated Group . | . . . . Highest-Rated Ally . | . . . . Total Orders . | . . . . Ally Attacks . | . . . . Total Damage . | . . . . Kills . | . . . . Allies Corrupted . | . . . . Allies Melted . | . . . . Intel | -11 -10 -9 -8 ------- Run | Yrd Mat Mat Mat Robot Analysis Total . | . . . . Derelict Logs Recovered . | . . . . Drone Launches . | . . . . Drone Recoveries . | . . . . Exploration | -11 -10 -9 -8 ------------- Run | Yrd Mat Mat Mat Turns Passed 3836 | 1003 784 1645 404 Spaces Moved 1861 | 583 304 776 198 Core 11 | 7 . . 4 Treads 1850 | 576 304 776 194 Legs . | . . . . Wheels . | . . . . Hover . | . . . . Flight . | . . . . Fastest Speed 50 | 50 160 160 160 Average Speed 173 | 158 231 162 172 Slowest Speed 700 | 160 240 240 700 Overloaded Moves . | . . . . Propulsion Burnouts . | . . . . Robots Hopped . | . . . . Cave-ins Triggered . | . . . . Exploration Rate (%) 42 | 32 49 66 21 Regions Visited 3 Branch Regions . Pre-discovered Areas . | . . . . Known Exits Taken . | . . . . Unknown Exits Taken 3 | 1 1 1 . Scrap Searched . | . . . . Spaces Dug 21 | 2 19 . . Terrain Destroyed 507 | 2 194 311 . Melee . | . . . . Projectile 2 | 2 . . . AOE 505 | . 194 311 . Terrain Rammed . | . . . . Walls Destroyed . | . . . . Machines Disabled . | . . . . Actions | -11 -10 -9 -8 --------- Run | Yrd Mat Mat Mat Total 2272 | 628 361 1054 229 Wait 117 | . 12 104 1 Move 1858 | 582 303 775 198 Hop . | . . . . Pick Up 72 | 17 10 40 5 Fast Attach 4 | . 3 1 . Attach 24 | 8 . 13 3 Detach 1 | . . 1 . Swap 23 | 1 5 16 1 Drop 42 | 2 11 25 4 Fire 131 | 18 17 79 17 Melee . | . . . . Ram . | . . . . Kick . | . . . . Crush . | . . . . Escape Stasis . | . . . . Rewire . | . . . . Trap . | . . . . Miscellaneous . | . . . . Route ------- -11/Scrapyard -10/Materials (discovered 2 exits: *Mat / [*Min]) -9/Materials (discovered 2 exits: *Mat / [*Min]) -8/Materials History --------- Turn | Location | Event 39 | -11/Scrapyard | Discovered new exit (range 16) 1004 | -11/Scrapyard | Entered Materials 1005 | -10/Materials | Build established: Mutant 1417 | -10/Materials | Discovered new exit (range 12) 1582 | -10/Materials | Discovered new exit (range 7) 1788 | -10/Materials | Entered another Materials area 1788 | -9/Materials | Evolved 2 slots: Propulsion x1, Utility x1 1841 | -9/Materials | Repaired Imp. Treads 1875 | -9/Materials | Repaired Imp. Treads 2238 | -9/Materials | Discovered new exit (range 8) 2433 | -9/Materials | Core integrity fell below 50% 2781 | -9/Materials | Build established: Scavenger-Mutant 3023 | -9/Materials | Discovered new exit (range 12) 3394 | -9/Materials | Build established: Mutant 3433 | -9/Materials | Entered another Materials area 3433 | -8/Materials | Evolved 2 slots: Utility x2 3828 | -8/Materials | Core integrity fell below 50% 3835 | -8/Materials | Core integrity fell below 20% 3837 | -8/Materials | Destroyed by G-47 Trooper with Particle Gun Last Messages --------------- Lgt. Treads destroyed. U-05 Engineer lays Concrete. Lgt. Treads destroyed. U-05 Engineer lays Concrete. Overheating: System interference. Salvage Targeting Computer temporarily disabled. K-01 Serf collects debris. U-05 Engineer lays Concrete. K-01 Serf collects debris. U-05 Engineer lays Concrete. K-01 Serf collects debris. U-05 Engineer lays Concrete. K-01 Serf collects debris. U-05 Engineer lays Concrete. K-01 Serf collects debris. U-05 Engineer lays Concrete. K-01 Serf collects debris. U-05 Engineer lays Concrete. K-01 Serf collects debris. U-05 Engineer lays Concrete. Map ----- +----------------------------------------------------+ | ???????????????????????# #?# # #? | | ???????????????????????###+#######?# # #? | | ?????????????????????????# ######### # """ #? | | ?????????????????????????# # """"" #? | | ?????????????????????????# + """"" #? | | ?????????????????????????# # """"" #? | | ?????????????????????????########### # """ #? | | ???????????????????????????????????# # #? | | ???????????????????????#?########### #[ ! #? | | ???????????????????????# ##########? | | ???????????????????????# #?????????? | | ???????????????????????# """" """" #?????????? | | ???????????????????????# """" """" ! #?????????? | | ???????????????????????# """" """" %*#?????????? | | ???????????????????????# = #?????????? | | ???????????????????????# =#?????????? | | ???????????????????????#/ """" """" !%########??? | | ???????????????????????# """ """%!=% #??? | | ???????????????????????# u " +??? | | ???????????????????????# u % #??? | | ???????????????????????# ] ###### #??? | | ????????????????####+### " =%= #?????????? | | ??????????????? # [ gg " !% #?????????? | | ??????????????" + *%= gg""""u #?????????? | | ????????????????# = *% g k #?????????? | | ????????????????#### ### @ g #?????????? | | ?????????????????? ???### ####"T"## #?????????? | | ?????????????????#???????# #??##########?????????? | | ?????????????????????????# #?????????????????????? | | ?????????????????????????# #?????????????????????? | | ?????????????????????????# #?????????????????????? | | ?????????????????????????# #?????????????????????? | | ?????????????????????????# ?????????????????????? | | ?????????????????????????# ?????????????????????? | | ?????????????????????????# ?????????????????????? | | ?????????????????????????? ?????????????????????? | | ?????????????????????????? ?????????????????????? | | ?????????????????????????? ?????????????????????? | | ?????????????????????????? #?????????????????????? | | ?????????????????????????? ??????????????????????? | | ?????????????????????????? ??????????????????????? | | ?????????????????????????????????????????????????? | | ?????????????????????????????????????????????????? | | ?????????????????????????????????????????????????? | | ?????????????????????????????????????????????????? | | ?????????????????????????????????????????????????? | | ?????????????????????????????????????????????????? | | ?????????????????????????????????????????????????? | | ?????????????????????????????????????????????????? | | ?????????????????????????????????????????????????? | +----------------------------------------------------+ Best States ------------- Heat Dissipation 31 Coolant Potential 50 Energy Generation 14 Energy Capacity 340 Matter Stores 300 Matter Capacity 300 Sight Range 16 Terrain Scan Range 16 Terrain Scan Density 10 Armor Coverage 150 Propulsion Shielding 66 Evasion (%) 40 Recoil Reduction 3 Salvage Targeting 2 Item Schematics ----------------- None Robot Schematics ------------------ None Fabricated ------------ Nothing Alien Tech Used ----------------- None Achievements -------------- Oops Remodeling Challenges ------------ None Game ------ Seed CoolantInsulatedScythe Manual? 0 Play Time 00:45:04 Cumulative 5.0 hours Start 2024.04.02 @ 05:05:13 End 2024.04.02 @ 05:55:02 Sessions 1 Manual Loads 0 Difficulty Rogue Special Mode None Game No. 6 Rogue 1 Adventurer 5 Explorer 0 Win Type - Total 0 Types 0/0/0/0/0/0/0/0/0 Lore% 8 Gallery% 12 Achievement% 9 Wizard Run 0 Options --------- Layout 1 ASCII 0 Keyboard 0 Movement Mouse Keybinds 0 Fullscreen 2 Font 24/Smallcaps Map View 50x35 Zoom Use 0% Tactical HUD 0 Map Filters NONE Filters NONE Steam 1 RUN: b68b600e-8804-472c-8982-bdfb7c8d4490